bitfinex/quotes_BTCUSD_20241110
["timestamp","ask_amount","ask_price","bid_price","bid_amount"]
[1731221404520,8.69498791,78601.0,78598.0,0.1]
[1731221406797,8.69498791,78601.0,78600.0,0.27848504]
[1731221407190,8.69498791,78601.0,78600.0,0.1]
[1731221408073,8.69498791,78601.0,78598.0,0.1]
[1731221408601,8.69498791,78601.0,78600.0,0.17848504]
[1731221408765,8.69498791,78601.0,78600.0,0.1]
[1731221409763,8.69498791,78601.0,78598.0,0.1]
[1731221411197,8.69498791,78601.0,78600.0,0.1]
[1731221411699,8.67198791,78601.0,78600.0,0.27848504]
[1731221411870,8.67198791,78601.0,78600.0,0.40942725]
[1731221412306,8.67198791,78601.0,78600.0,0.41942725]
[1731221412549,8.65223313,78601.0,78600.0,0.49882725]
[1731221412844,8.64588818,78601.0,78600.0,0.32034221]
[1731221413784,8.64588818,78601.0,78600.0,0.49882725]
[1731221414022,8.64588818,78601.0,78600.0,0.31034221]
[1731221414221,8.64588818,78601.0,78600.0,0.30534221]
[1731221414447,8.64588818,78601.0,78600.0,0.48382725]
[1731221414621,8.64588818,78601.0,78600.0,0.31034221]
[1731221414832,8.6013426,78601.0,78600.0,0.31034221]
[1731221415034,8.59779351,78601.0,78600.0,0.31034221]
[1731221416073,8.59779351,78601.0,78600.0,0.32034221]
[1731221418087,8.59779351,78601.0,78600.0,0.24094221]
[1731221418655,8.59054771,78601.0,78600.0,0.24094221]
[1731221418871,8.56722573,78601.0,78600.0,0.24094221]
[1731221419101,8.56341639,78601.0,78600.0,0.24094221]
[1731221419488,8.56341639,78601.0,78600.0,0.015]
[1731221419903,8.56341639,78601.0,78600.0,0.005]
[1731221420071,8.56341639,78601.0,78600.0,0.015]
[1731221420272,8.56341639,78601.0,78600.0,0.005]
[1731221420855,8.56341639,78601.0,78598.0,0.1]
[1731221421331,0.0466,78599.0,78587.0,0.005]
[1731221421483,0.0757,78598.0,78592.0,0.19002736]
[1731221421904,0.0757,78598.0,78587.0,0.005]
[1731221422107,0.0757,78598.0,78585.0,0.005]
[1731221422330,0.0757,78598.0,78587.0,0.005]
[1731221424515,0.0757,78598.0,78590.0,0.1]
[1731221425713,0.67896796,78597.0,78590.0,0.1]
[1731221426750,0.65596796,78597.0,78596.0,0.1]
[1731221426956,0.65096796,78597.0,78596.0,0.1]
[1731221429940,0.65096796,78597.0,78596.0,0.65199744]
[1731221430141,0.65096796,78597.0,78596.0,0.47197008]
[1731221430463,0.65096796,78597.0,78596.0,0.32986933]
[1731221430848,0.65096796,78597.0,78596.0,0.33070733]
[1731221431561,0.65096796,78600.0,78599.0,0.005]
[1731221431945,0.65096796,78600.0,78599.0,0.04138429]
[1731221434806,0.65096796,78600.0,78599.0,0.32486933]
[1731221435016,8.52042187,78601.0,78600.0,0.115]
[1731221435277,8.51910717,78601.0,78600.0,0.36324221]
[1731221436664,8.51910717,78601.0,78600.0,0.74492221]
[1731221437269,8.51910717,78601.0,78600.0,0.61262221]
[1731221437474,8.51910717,78601.0,78600.0,0.67016504]
[1731221437698,8.50131236,78601.0,78600.0,0.67016504]
[1731221438082,8.50131236,78601.0,78600.0,0.66516504]
[1731221438338,8.50131236,78601.0,78600.0,0.84365008]
[1731221440227,8.50131236,78601.0,78600.0,0.66516504]
[1731221440875,8.50131236,78601.0,78600.0,0.97959229]
[1731221441084,8.50131236,78601.0,78600.0,1.05659229]
[1731221441646,8.45171151,78601.0,78600.0,1.05659229]
[1731221441870,8.44764213,78601.0,78600.0,1.05659229]
[1731221442691,8.44126792,78601.0,78600.0,1.05659229]
[1731221443125,7.34992876,78601.0,78600.0,1.05659229]
[1731221443361,6.42022041,78601.0,78600.0,1.13804532]
[1731221443835,6.03357472,78601.0,78600.0,1.13804532]
[1731221444247,6.0010847,78601.0,78600.0,1.13804532]
[1731221444449,5.64146301,78601.0,78600.0,1.13804532]
[1731221444665,5.37154768,78601.0,78600.0,1.13804532]
[1731221445072,5.02511687,78601.0,78600.0,1.14469727]
[1731221445275,4.53523397,78601.0,78600.0,1.14469727]
[1731221445451,4.52607553,78601.0,78600.0,1.14469727]
[1731221445703,4.52607553,78601.0,78600.0,1.1767933]
[1731221445704,2.89274643,78601.0,78600.0,1.1767933]
[1731221445925,1.46963481,78601.0,78600.0,1.0649933]
[1731221446261,1.46963481,78601.0,78600.0,1.03289727]
[1731221446466,1.33510165,78601.0,78600.0,1.03289727]
[1731221446673,1.33007432,78601.0,78600.0,1.03289727]
[1731221446843,1.31768654,78601.0,78600.0,1.03289727]
[1731221447061,1.0722558,78601.0,78600.0,1.03289727]
[1731221447284,1.01112357,78601.0,78600.0,1.03289727]
[1731221447686,0.94508438,78601.0,78600.0,1.03289727]
[1731221448075,0.66395063,78601.0,78600.0,1.03289727]
[1731221448275,0.19002736,78630.0,78625.0,0.015]
[1731221448479,0.06810751,78635.0,78634.0,0.005]
[1731221448662,0.06810751,78635.0,78634.0,0.79093725]
[1731221449050,0.06810751,78635.0,78634.0,0.79756449]
[1731221449243,0.06810751,78635.0,78634.0,0.61907945]
[1731221449450,0.047321,78645.0,78638.0,0.005]
[1731221449659,0.04480252,78645.0,78644.0,0.005]
[1731221449867,0.04480252,78645.0,78644.0,0.48147]
[1731221450112,0.04480252,78645.0,78644.0,0.48807851]
[1731221451541,0.12140252,78645.0,78644.0,0.48807851]
[1731221453185,0.12140252,78645.0,78644.0,0.49307851]
[1731221453398,0.12140252,78645.0,78644.0,0.61902072]
[1731221453643,0.000721,78648.0,78647.0,0.005]
[1731221453860,0.000721,78648.0,78647.0,0.61493487]
[1731221454058,0.000721,78648.0,78647.0,0.61873592]
[1731221454476,0.68922475,78661.0,78656.0,0.005]
[1731221454672,0.68922475,78663.0,78658.0,0.105]
[1731221454914,0.0766,78664.0,78661.0,0.005]
[1731221455120,0.0766,78664.0,78661.0,0.60732221]
[1731221455273,0.0766,78664.0,78661.0,0.61362983]
[1731221455474,0.0766,78664.0,78661.0,0.61862983]
[1731221455675,0.0766,78664.0,78661.0,0.61362983]
[1731221455878,0.0766,78664.0,78661.0,0.61862983]
[1731221456256,0.0766,78670.0,78661.0,0.61862983]
[1731221456456,0.0766,78670.0,78661.0,0.62862983]
[1731221456774,0.0766,78670.0,78661.0,0.62362983]
[1731221456969,0.0766,78670.0,78661.0,0.62862983]
[1731221457220,0.05432,78670.0,78666.0,0.015]
[1731221457436,0.05432,78670.0,78669.0,0.005]
[1731221457671,0.05432,78670.0,78669.0,0.23094221]
[1731221457879,0.05432,78670.0,78669.0,0.23723239]
[1731221458087,0.05432,78670.0,78669.0,0.61857239]
[1731221459142,0.0466,78675.0,78674.0,0.015]
[1731221459350,0.00072,78680.0,78677.0,0.005]
[1731221459552,0.00072,78680.0,78678.0,0.48384149]
[1731221459686,0.19002736,78708.0,78680.0,0.1]
[1731221459921,0.19002736,78699.0,78682.0,0.1]
[1731221460131,0.0793,78706.0,78685.0,0.1]
[1731221460339,0.17848504,78710.0,78685.0,0.1]
[1731221460340,0.0793,78704.0,78687.0,0.1]
[1731221460916,0.0793,78704.0,78702.0,0.1]
[1731221460917,0.65934974,78703.0,78702.0,0.1]
[1731221461126,0.65934974,78703.0,78702.0,0.51689791]
[1731221461555,0.65934974,78703.0,78702.0,0.52309702]
[1731221462369,0.65934974,78703.0,78702.0,0.48737911]
[1731221463160,0.65934974,78705.0,78704.0,0.005]
[1731221463338,0.65934974,78705.0,78704.0,0.61827887]
[1731221464163,0.55595277,78723.0,78720.0,0.005]
[1731221464311,0.55595277,78723.0,78721.0,0.1]
[1731221464515,0.55595277,78723.0,78721.0,0.48718747]
[1731221465450,0.55595277,78723.0,78722.0,0.23094221]
[1731221465672,0.55595277,78723.0,78722.0,0.61203221]
[1731221465891,0.55595277,78723.0,78722.0,0.61809088]
[1731221466156,0.00072,78724.0,78723.0,0.1]
[1731221466376,0.00072,78724.0,78723.0,0.48108]
[1731221466580,0.00072,78724.0,78723.0,0.48703433]
[1731221467374,0.00072,78724.0,78723.0,0.61297654]
[1731221468135,0.00072,78724.0,78723.0,0.61797654]
[1731221468329,0.00072,78724.0,78723.0,0.62094591]
[1731221469196,0.0793,78732.0,78723.0,0.62094591]
[1731221469197,0.0793,78732.0,78729.0,0.005]
[1731221469557,0.06255576,78732.0,78731.0,0.1]
[1731221469963,0.06255576,78732.0,78731.0,0.48993961]
[1731221470190,0.61850853,78732.0,78731.0,0.48993961]
[1731221471387,0.61850853,78732.0,78731.0,0.61588182]
[1731221471566,0.55595277,78737.0,78732.0,0.005]
[1731221471744,0.55595277,78737.0,78734.0,0.105]
[1731221471955,0.53295277,78737.0,78736.0,0.1]
[1731221472219,0.53295277,78737.0,78736.0,0.48102]
[1731221472525,0.53295277,78737.0,78736.0,0.49280938]
[1731221474167,0.65995277,78737.0,78736.0,0.49280938]
[1731221474368,0.65995277,78737.0,78702.0,0.19086436]
[1731221474369,0.127,78736.0,78715.0,0.005]
[1731221474581,0.129,78732.0,78731.0,0.19002736]
[1731221474785,0.127,78729.0,78710.0,0.19002736]
[1731221474956,0.127,78727.0,78720.0,0.19002736]
[1731221475172,0.127,78725.0,78710.0,0.19002736]
[1731221475375,0.0782,78723.0,78718.0,0.19002736]
[1731221475575,0.0488,78722.0,78710.0,0.17814736]
[1731221475775,0.0488,78722.0,78710.0,0.22888036]
[1731221475958,0.22728504,78722.0,78710.0,0.22888036]
[1731221476175,0.007,78730.0,78702.0,0.19086436]
[1731221476176,0.0488,78715.0,78702.0,0.19086436]
[1731221476425,0.14014339,78714.0,78710.0,0.19002736]
[1731221476667,0.14014339,78714.0,78702.0,0.19086436]
[1731221477674,0.17848504,78710.0,78703.0,0.150739]
[1731221477890,0.0483,78703.0,78702.0,0.000837]
[1731221478091,0.25514221,78703.0,78702.0,0.000837]
[1731221478323,0.25514221,78703.0,78676.0,0.19002736]
[1731221478519,0.2660856,78702.0,78697.0,0.19002736]
[1731221478745,0.2660856,78702.0,78687.0,0.05075]
[1731221478949,0.2660856,78702.0,78694.0,0.19002736]
[1731221479065,0.2660856,78702.0,78687.0,0.05075]
[1731221479906,0.0483,78696.0,78687.0,0.05075]
[1731221480107,0.17848504,78692.0,78687.0,0.05075]
[1731221480308,0.17848504,78692.0,78688.0,0.19002736]
[1731221480530,0.17848504,78692.0,78676.0,0.19002736]
[1731221480761,0.17848504,78692.0,78689.0,0.01048643]
[1731221480899,0.17848504,78692.0,78676.0,0.19002736]
[1731221481099,0.17848504,78692.0,78690.0,0.01048217]
[1731221481317,0.17848504,78692.0,78678.0,0.050754]
[1731221481484,0.17848504,78692.0,78691.0,0.01047791]
[1731221481686,0.17848504,78692.0,78685.0,0.1]
[1731221482575,0.17848504,78692.0,78678.0,0.050754]
[1731221482746,0.17848504,78692.0,78679.0,0.01052905]
[1731221482963,0.14014339,78695.0,78679.0,0.01052905]
[1731221483326,0.14014339,78695.0,78685.0,0.19002736]
[1731221483524,0.14014339,78695.0,78686.0,0.1]
[1731221483745,0.14014339,78695.0,78687.0,0.01050774]
[1731221484828,0.17848504,78691.0,78687.0,0.01050774]
[1731221485292,0.14014339,78694.0,78689.0,0.1]
[1731221485707,0.14014339,78694.0,78690.0,0.01060187]
[1731221486086,0.14014339,78694.0,78689.0,0.1]
[1731221486455,0.14014339,78694.0,78678.0,0.150754]
[1731221486677,0.14014339,78694.0,78688.0,0.1]
[1731221487057,0.11714339,78694.0,78689.0,0.01066141]
[1731221487295,0.11698621,78694.0,78689.0,0.01066141]
[1731221487935,0.11698621,78694.0,78691.0,0.1]
[1731221488502,0.11698621,78694.0,78692.0,0.01039854]
[1731221489446,0.11698621,78694.0,78678.0,0.150754]
[1731221489597,0.11698621,78694.0,78688.0,0.1]
[1731221490067,0.11698621,78694.0,78689.0,0.01041938]
[1731221490852,0.11698621,78693.0,78689.0,0.01041938]
[1731221491057,0.11698621,78693.0,78691.0,0.1]
[1731221491478,0.11698621,78693.0,78692.0,0.01119294]
[1731221492318,0.11698621,78693.0,78692.0,0.000837]
[1731221494570,0.11698621,78693.0,78692.0,0.00946104]
[1731221498969,0.11698621,78693.0,78692.0,0.14040325]
[1731221499167,0.001674,78714.0,78692.0,0.14040325]
[1731221499168,0.11698621,78711.0,78704.0,0.005]
[1731221499316,0.30701357,78710.0,78704.0,0.13094221]
[1731221499530,0.11698621,78710.0,78707.0,0.19002736]
[1731221499728,0.001674,78714.0,78711.0,0.005]
[1731221499887,0.001674,78714.0,78713.0,0.005]
[1731221500132,0.001674,78714.0,78713.0,0.13094221]
[1731221500332,0.001674,78714.0,78713.0,0.13740113]
[1731221500538,0.001674,78714.0,78713.0,0.14740113]
[1731221502478,0.16870136,78733.0,78724.0,0.005]
[1731221502709,0.6897,78732.0,78724.0,0.13094221]
[1731221502933,0.6897,78732.0,78717.0,0.005]
[1731221503156,0.6897,78732.0,78711.0,0.19002736]
[1731221503352,0.24974221,78731.0,78711.0,0.19002736]
[1731221503555,0.24974221,78731.0,78719.0,0.19002736]
[1731221503761,0.24974221,78731.0,78711.0,0.19002736]
[1731221503994,0.002,78730.0,78711.0,0.19002736]
[1731221504159,0.24974221,78729.0,78711.0,0.19002736]
[1731221506814,0.1238,78729.0,78720.0,0.19002736]
[1731221506996,0.1238,78729.0,78718.0,0.005]
[1731221507191,0.1238,78729.0,78724.0,0.2590628]
[1731221508804,0.6897,78728.0,78724.0,0.2590628]
[1731221509996,0.6825,78728.0,78721.0,0.19002736]
[1731221510383,0.1238,78729.0,78719.0,0.12594221]
[1731221510384,0.6825,78727.0,78719.0,0.12594221]
[1731221510546,0.6825,78726.0,78719.0,0.12594221]
[1731221510786,0.6825,78725.0,78707.0,0.005]
[1731221510988,0.6825,78724.0,78709.0,0.005]
[1731221511203,0.6825,78724.0,78712.0,0.38111]
[1731221511348,0.6825,78724.0,78723.0,0.005]
[1731221511719,0.6897,78724.0,78723.0,0.13094221]
[1731221511852,0.6897,78724.0,78723.0,0.51202221]
[1731221512368,0.0774,78736.0,78726.0,0.005]
[1731221512581,0.0774,78736.0,78727.0,0.50954224]
[1731221512924,0.0774,78736.0,78727.0,0.50700221]
[1731221513290,0.0774,78736.0,78728.0,0.00254002]
[1731221513471,0.0774,78736.0,78729.0,0.38105]
[1731221514871,0.001674,78733.0,78729.0,0.38105]
[1731221515737,0.001674,78733.0,78732.0,0.005]
[1731221515940,0.001674,78733.0,78732.0,0.51198221]
[1731221517082,0.001674,78733.0,78732.0,0.77104501]
[1731221517295,0.6897,78751.0,78740.0,0.2590628]
[1731221517503,0.1238,78756.0,78747.0,0.2590628]
[1731221517853,0.1238,78756.0,78752.0,0.005]
[1731221518033,0.1238,78756.0,78753.0,0.50688221]
[1731221518792,0.0464,78756.0,78753.0,0.50688221]
[1731221519009,0.0464,78756.0,78753.0,0.38094]
[1731221522721,0.0464,78756.0,78753.0,0.50688221]
[1731221522927,0.0212058,78763.0,78762.0,0.005]
[1731221523145,0.0212058,78763.0,78762.0,0.78089501]
[1731221523581,0.0212058,78763.0,78762.0,0.52183221]
[1731221523789,0.0212058,78763.0,78762.0,0.78089501]
[1731221528271,0.0228798,78763.0,78762.0,0.78089501]
[1731221529949,0.0228798,78763.0,78762.0,0.84485453]
[1731221530093,0.0228798,78763.0,78762.0,0.88102718]
[1731221530283,0.0228798,78763.0,78762.0,0.81706766]
[1731221530704,0.0228798,78763.0,78762.0,0.51183221]
[1731221530914,0.0228798,78763.0,78762.0,0.52183221]
[1731221531135,0.7125798,78763.0,78762.0,0.51183221]
[1731221531825,0.7125798,78763.0,78762.0,0.50683221]
[1731221532019,0.7125798,78763.0,78762.0,0.51183221]
[1731221532196,0.6895798,78763.0,78762.0,0.51183221]
[1731221532536,0.6895798,78763.0,78762.0,0.55701219]
[1731221532738,0.68412018,78763.0,78762.0,0.55701219]
[1731221532972,0.68032322,78781.0,78772.0,0.015]
[1731221533167,0.68032322,78781.0,78780.0,0.005]
[1731221533379,0.68032322,78781.0,78780.0,0.51175221]
[1731221534347,0.68032322,78781.0,78780.0,0.50675221]
[1731221534745,0.68032322,78781.0,78780.0,0.40675221]
[1731221535295,0.68032322,78781.0,78780.0,0.38081]
[1731221536365,0.67338318,78781.0,78780.0,0.38081]
[1731221536583,0.67338318,78781.0,78780.0,0.52175221]
[1731221537739,0.67338318,78781.0,78780.0,0.51175221]
[1731221537957,0.67338318,78781.0,78780.0,0.52175221]
[1731221538954,0.00025,78784.0,78781.0,0.005]
[1731221539090,0.00025,78784.0,78781.0,0.51174221]
[1731221541224,0.00025,78784.0,78781.0,0.50674221]
[1731221542727,0.00025,78784.0,78781.0,0.51181021]
[1731221543963,0.00025,78784.0,78781.0,0.385868]
[1731221544944,5.366e-05,78784.0,78781.0,0.385868]
[1731221545327,5.366e-05,78784.0,78781.0,0.3808]
[1731221546986,0.65115584,78794.0,78781.0,0.3808]
[1731221547393,0.1213,78795.0,78782.0,0.19002736]
[1731221547603,0.1213,78795.0,78783.0,0.38079]
[1731221550177,0.1213,78795.0,78783.0,0.50673221]
[1731221552096,0.122972,78795.0,78783.0,0.50673221]
[1731221553065,0.122972,78795.0,78783.0,0.38079]
[1731221553264,0.77412784,78795.0,78784.0,0.19002736]
[1731221553507,0.77412784,78795.0,78785.0,0.38078]
[1731221556749,0.0631,78786.0,78785.0,0.38078]
[1731221556950,0.0631,78786.0,78772.0,0.19002736]
[1731221556951,0.26953984,78779.0,78772.0,0.19002736]
[1731221557330,0.0463,78778.0,78754.0,0.005]
[1731221557551,0.6897,78777.0,78760.0,0.050695]
[1731221557939,0.0463,78773.0,78766.0,0.19002736]
[1731221558164,0.12594221,78772.0,78751.0,0.050701]
[1731221558362,0.0484,78771.0,78764.0,0.19002736]
[1731221558515,0.12594221,78770.0,78754.0,0.38089]
[1731221558717,0.12594221,78770.0,78761.0,0.19002736]
[1731221558934,0.12594221,78770.0,78754.0,0.38089]
[1731221559753,0.076,78769.0,78754.0,0.38089]
[1731221561920,0.0484,78768.0,78754.0,0.38089]
[1731221562126,0.0484,78766.0,78755.0,0.19002736]
[1731221562334,0.002,78764.0,78755.0,0.19002736]
[1731221562601,0.12594221,78765.0,78755.0,0.19002736]
[1731221562939,0.0484,78761.0,78755.0,0.19002736]
[1731221563139,0.49967264,78760.0,78754.0,0.38089]
[1731221563551,0.49967264,78760.0,78755.0,0.19002736]
[1731221563761,0.49967264,78760.0,78756.0,0.38092]
[1731221564906,0.4961591,78760.0,78756.0,0.38092]
[1731221568104,0.4961591,78759.0,78756.0,0.38092]
[1731221570469,0.48814828,78759.0,78756.0,0.38092]
[1731221571330,0.48314828,78759.0,78756.0,0.38092]
[1731221572614,0.0484,78761.0,78756.0,0.38092]
[1731221574080,0.48314828,78760.0,78756.0,0.38092]
[1731221574478,0.0484,78761.0,78756.0,0.38092]
[1731221575495,0.03459504,78761.0,78756.0,0.38092]
[1731221576459,0.03459504,78761.0,78756.0,0.381759]
[1731221576601,0.03627304,78761.0,78756.0,0.381759]
[1731221577123,0.01327304,78761.0,78756.0,0.381759]
[1731221579828,0.48314828,78760.0,78756.0,0.381759]
[1731221580468,0.48314828,78760.0,78757.0,0.1]
[1731221580637,0.0792,78759.0,78757.0,0.1]
[1731221582615,0.48314828,78758.0,78757.0,0.1]
[1731221584024,0.7871525,78758.0,78757.0,0.1]
[1731221584253,0.1437,78757.0,78756.0,0.381759]
[1731221584457,0.26964221,78757.0,78756.0,0.381759]
[1731221584843,0.1437,78753.0,78729.0,0.19002736]
[1731221585056,0.17806201,78758.0,78729.0,0.19002736]
[1731221585057,0.17806201,78733.0,78729.0,0.19002736]
[1731221585249,0.005,78736.0,78729.0,0.19002736]
[1731221585897,0.005,78736.0,78723.0,0.000837]
[1731221586096,0.12594221,78735.0,78726.0,0.1]
[1731221586308,0.12594221,78735.0,78723.0,0.000837]
[1731221586852,0.17806201,78734.0,78723.0,0.000837]
[1731221587049,0.12594221,78733.0,78723.0,0.000837]
[1731221588360,0.005,78730.0,78723.0,0.000837]
[1731221588566,0.1287,78725.0,78723.0,0.000837]
[1731221588912,0.25764221,78725.0,78723.0,0.000837]
[1731221589676,0.43770422,78725.0,78723.0,0.000837]
[1731221590102,0.25764221,78725.0,78723.0,0.000837]
[1731221590504,0.25264221,78725.0,78723.0,0.000837]
[1731221590708,0.0792,78732.0,78723.0,0.000837]
[1731221590889,0.12594221,78731.0,78723.0,0.000837]
[1731221591720,0.12794221,78731.0,78723.0,0.000837]
[1731221592164,0.10294221,78731.0,78723.0,0.000837]
[1731221592954,0.002,78729.0,78723.0,0.000837]
[1731221593154,0.10294221,78731.0,78723.0,0.000837]
[1731221593353,0.002,78726.0,78723.0,0.000837]
[1731221593600,0.12594221,78725.0,78723.0,0.000837]
[1731221596483,0.005,78731.0,78723.0,0.000837]
[1731221596699,0.12594221,78730.0,78723.0,0.000837]
[1731221597050,0.19002736,78736.0,78723.0,0.100837]
[1731221597249,0.12594221,78735.0,78723.0,0.100837]
[1731221598035,0.12594221,78735.0,78723.0,0.000837]
[1731221600306,0.001678,78731.0,78723.0,0.000837]
[1731221600511,0.001678,78731.0,78715.0,0.23952736]
[1731221600712,0.001678,78731.0,78716.0,0.1]
[1731221601151,0.001678,78731.0,78706.0,0.17806201]
[1731221601152,0.001678,78731.0,78706.0,0.22696201]
[1731221601357,0.6897,78730.0,78714.0,0.19002736]
[1731221601556,0.002,78726.0,78705.0,0.19002736]
[1731221601767,0.002,78726.0,78713.0,0.19002736]
[1731221601768,0.12594221,78725.0,78713.0,0.19002736]
[1731221601967,0.12594221,78725.0,78705.0,0.19002736]
[1731221603077,0.12594221,78725.0,78706.0,0.17806201]
[1731221603905,0.003678,78731.0,78722.0,0.17806201]
[1731221603906,0.6897,78724.0,78722.0,0.17806201]
[1731221605310,0.60844863,78724.0,78722.0,0.17806201]
[1731221605553,0.57788517,78724.0,78718.0,0.0776]
[1731221606173,0.57788517,78724.0,78707.0,0.43372475]
[1731221606174,0.19002736,78723.0,78709.0,0.0776]
[1731221606378,0.57788517,78724.0,78713.0,0.19002736]
[1731221606530,0.57788517,78722.0,78713.0,0.19002736]
[1731221606939,0.57788517,78722.0,78709.0,0.0776]
[1731221607640,0.57788517,78722.0,78707.0,0.0489]
[1731221608354,0.57788517,78722.0,78708.0,0.26142329]
[1731221609047,0.57788517,78722.0,78716.0,0.25888254]
[1731221609457,0.57788517,78721.0,78716.0,0.25888254]
[1731221609891,0.57788517,78721.0,78707.0,0.30778254]
[1731221610100,0.57788517,78721.0,78707.0,0.43372475]
[1731221610651,0.19002736,78718.0,78707.0,0.30778254]
[1731221610793,0.57788517,78721.0,78707.0,0.30778254]
[1731221610997,0.57788517,78721.0,78704.0,0.005]
[1731221611201,0.57788517,78720.0,78706.0,0.19002736]
[1731221612044,0.19002736,78718.0,78706.0,0.19002736]
[1731221612278,0.57788517,78720.0,78706.0,0.19002736]
[1731221612649,0.57788517,78720.0,78707.0,0.000839]
[1731221612851,0.19002736,78718.0,78707.0,0.000839]
[1731221613431,0.57788517,78720.0,78707.0,0.000839]
[1731221614304,0.19002736,78718.0,78707.0,0.000839]
[1731221614419,0.19002736,78718.0,78708.0,0.03636798]
[1731221614997,0.57788517,78720.0,78708.0,0.03636798]
[1731221615347,0.57788517,78719.0,78709.0,0.19002736]
[1731221615554,0.57788517,78719.0,78710.0,0.03636962]
[1731221618171,0.56445883,78719.0,78710.0,0.03636962]
[1731221619187,0.56445883,78719.0,78710.0,0.03891039]
[1731221619395,0.56445883,78719.0,78711.0,0.03636962]
[1731221620800,0.56445883,78719.0,78712.0,0.03636962]
[1731221621002,0.56445883,78719.0,78713.0,0.03636962]
[1731221621217,0.56445883,78718.0,78714.0,0.03636962]
[1731221621415,0.56445883,78718.0,78715.0,0.03636962]
[1731221621623,0.56445883,78718.0,78716.0,0.03636962]
[1731221621854,0.55212978,78718.0,78717.0,0.03636962]
[1731221622085,0.55212978,78718.0,78710.0,0.03636962]
[1731221622300,0.52912978,78718.0,78711.0,0.03636962]
[1731221622515,0.52912978,78718.0,78712.0,0.03636962]
[1731221622715,0.52912978,78718.0,78713.0,0.03636962]
[1731221622960,0.52912978,78718.0,78714.0,0.03636962]
[1731221623119,0.52912978,78718.0,78715.0,0.03636962]
[1731221623318,0.52912978,78718.0,78716.0,0.03636962]
[1731221623559,0.52912978,78718.0,78717.0,0.03636962]
[1731221623942,0.52912978,78718.0,78710.0,0.03636962]
[1731221626307,0.52912978,78718.0,78709.0,0.03636962]
[1731221626514,0.52912978,78718.0,78710.0,0.03636962]
[1731221626735,0.52912978,78718.0,78709.0,0.03636962]
[1731221626969,0.52912978,78718.0,78710.0,0.03636962]
[1731221627173,0.52912978,78718.0,78708.0,0.30608254]
[1731221627174,0.52912978,78718.0,78709.0,0.03636962]
[1731221627400,0.52912978,78717.0,78714.0,0.17817884]
[1731221627627,0.52912978,78717.0,78715.0,0.03636962]
[1731221630990,0.52912978,78717.0,78714.0,0.17817884]
[1731221630991,0.96363038,78715.0,78714.0,0.17817884]
[1731221631193,0.96363038,78715.0,78714.0,0.21464477]
[1731221631396,0.96363038,78715.0,78714.0,0.17817884]
[1731221631986,0.96363038,78715.0,78707.0,0.000839]
[1731221632206,0.96363038,78715.0,78708.0,0.12594221]
[1731221632458,0.52912978,78717.0,78709.0,0.17817884]
[1731221632576,0.49276016,78717.0,78709.0,0.17817884]
[1731221633192,0.49276016,78716.0,78709.0,0.17817884]
[1731221634316,0.48869366,78716.0,78709.0,0.17817884]
[1731221636386,0.48869366,78716.0,78709.0,0.17901784]
[1731221637135,0.46569366,78716.0,78709.0,0.17901784]
[1731221637840,0.44189899,78716.0,78709.0,0.17901784]
[1731221638620,0.31632736,78715.0,78709.0,0.000839]
[1731221638844,0.24875563,78698.0,78697.0,0.050736]
[1731221639968,0.24168395,78698.0,78697.0,0.25487821]
[1731221640170,0.22672292,78698.0,78697.0,0.25487821]
[1731221640372,0.20819626,78698.0,78697.0,0.25487821]
[1731221641340,0.18416813,78698.0,78697.0,0.25487821]
[1731221641507,0.1729414,78698.0,78697.0,0.25487821]
[1731221641685,0.12215363,78698.0,78697.0,0.25487821]
[1731221641885,0.11821286,78698.0,78697.0,0.25487821]
[1731221642276,0.11821286,78698.0,78697.0,0.25987821]
[1731221643551,0.11821286,78698.0,78697.0,0.38666821]
[1731221643751,0.11403161,78698.0,78697.0,0.38666821]
[1731221644613,0.10696003,78698.0,78697.0,0.38666821]
[1731221644811,0.07112187,78698.0,78697.0,0.38666821]
[1731221645012,0.06664773,78698.0,78697.0,0.38666821]
[1731221645271,0.06258033,78698.0,78697.0,0.38666821]
[1731221645679,0.06258033,78698.0,78697.0,0.39666821]
[1731221645894,0.06258033,78698.0,78697.0,0.39166821]
[1731221646093,0.06258033,78698.0,78697.0,0.38666821]
[1731221646295,0.05791352,78698.0,78697.0,0.38666821]
[1731221647894,0.74761352,78698.0,78697.0,0.30846821]
[1731221649454,0.73518642,78698.0,78697.0,0.30930821]
[1731221649598,0.73686642,78698.0,78697.0,0.30930821]
[1731221650632,0.66772198,78698.0,78697.0,0.30930821]
[1731221651261,0.66772198,78698.0,78697.0,0.37805851]
[1731221651501,0.66780771,78709.0,78703.0,0.005]
[1731221651803,0.19002736,78708.0,78704.0,0.27026305]
[1731221651960,0.62538643,78709.0,78704.0,0.26772221]
[1731221652454,0.60238643,78709.0,78705.0,0.005]
[1731221652655,0.60238643,78709.0,78708.0,0.17817884]
[1731221652829,0.5869535,78709.0,78708.0,0.43089105]
[1731221653786,0.52168789,78709.0,78708.0,0.43089105]
[1731221653985,0.51785335,78709.0,78708.0,0.43089105]
[1731221654809,0.51785335,78709.0,78708.0,0.12677]
[1731221655475,0.51160498,78709.0,78708.0,0.12677]
[1731221656459,0.48727496,78709.0,78708.0,0.12677]
[1731221656839,0.46979958,78709.0,78708.0,0.12677]
[1731221659362,0.46352872,78709.0,78708.0,0.12677]
[1731221659561,0.43364049,78720.0,78708.0,0.12677]
[1731221659765,0.11569789,78722.0,78719.0,0.17817884]
[1731221660061,0.11569789,78722.0,78720.0,0.12675]
[1731221660221,0.09585511,78733.0,78720.0,0.12675]
[1731221660620,0.08495983,78733.0,78720.0,0.12675]
[1731221660848,0.06721619,78733.0,78720.0,0.12675]
[1731221661054,0.05326252,78733.0,78720.0,0.12675]
[1731221661511,0.04889798,78733.0,78725.0,0.17817884]
[1731221661716,0.1282,78739.0,78726.0,0.12674]
[1731221664439,0.1282,78739.0,78727.0,0.1]
[1731221665084,0.20081258,78738.0,78727.0,0.1]
[1731221666967,0.30375479,78737.0,78727.0,0.1]
[1731221667331,0.19502736,78734.0,78727.0,0.1]
[1731221667530,0.002,78720.0,78710.0,0.19002736]
[1731221667729,0.1282,78719.0,78710.0,0.19002736]
[1731221668514,0.002,78718.0,78698.0,0.19002736]
[1731221668714,0.05107258,78717.0,78709.0,0.19002736]
[1731221669135,0.05107258,78717.0,78709.0,0.17817884]
[1731221669331,0.05107258,78717.0,78710.0,0.1]
[1731221669710,0.03790209,78717.0,78710.0,0.1]